lending/lending_fUSD_20241007
["ID","MTS","AMOUNT","RATE_DAILY","PERIOD"]
[339998635,1728305432500,-305.99437068,0.000119,2]
[339998637,1728305432509,-481.26,0.00011918,2]
[339998638,1728305432518,-241.61922872,0.00012,2]
[339998640,1728305432528,-165.95,0.00012033,2]
[339998642,1728305432537,-44472.66,0.00012055,2]
[339998644,1728305432549,-180.0,0.00012055,2]
[339998646,1728305432560,-279.41,0.00012105,2]
[339998648,1728305432570,-1000.0,0.00012329,2]
[339998650,1728305432580,-1000.0,0.00012329,2]
[339998652,1728305432590,-1000.0,0.00012329,2]
[339998654,1728305432600,-1000.0,0.00012329,2]
[339998656,1728305432609,-1000.0,0.00012329,2]
[339998658,1728305432620,-1000.0,0.00012329,2]
[339998660,1728305432630,-1000.0,0.00012329,2]
[339998662,1728305432639,-1000.0,0.00012329,2]
[339998664,1728305432649,-1000.0,0.00012329,2]
[339998666,1728305432659,-410.29906139,0.00012329,2]
[339998669,1728305432671,-589.70093861,0.00012329,2]
[339998671,1728305432680,-1000.0,0.00012329,2]
[339998672,1728305432690,-1000.0,0.00012329,2]
[339998674,1728305432699,-1000.0,0.00012329,2]
[339998676,1728305432708,-1000.0,0.00012329,2]
[339998678,1728305432718,-1000.0,0.00012329,2]
[339998680,1728305432727,-1000.0,0.00012329,2]
[339998682,1728305432736,-1000.0,0.00012329,2]
[339998684,1728305432745,-1000.0,0.00012329,2]
[339998686,1728305432754,-1007.0,0.00012329,2]
[339998688,1728305432763,-481.26,0.00012486,2]
[339998690,1728305432773,-150.0,0.00012519,2]
[339998691,1728305432782,-150.0,0.00012525,2]
[339998692,1728305432792,-150.0,0.00012525,2]
[339998693,1728305432807,-150.0,0.00012528,2]
[339998694,1728305432816,-150.0,0.00012529,2]
[339998695,1728305432826,-150.0,0.00012529,2]
[339998696,1728305432835,-150.0,0.00012531,2]
[339998697,1728305432844,-150.0,0.00012532,2]
[339998698,1728305432853,-150.0,0.00012533,2]
[339998699,1728305432862,-150.0,0.00012534,2]
[339998700,1728305432871,-171.68,0.00012538,2]
[339998701,1728305432880,-150.0,0.00012538,2]
[339998702,1728305432890,-150.0,0.00012538,2]
[339998703,1728305432899,-150.0,0.00012538,2]
[339998704,1728305432907,-150.0,0.00012539,2]
[339998705,1728305432917,-150.0,0.00012543,2]
[339998706,1728305432926,-150.0,0.00012545,2]
[339998707,1728305432936,-150.0,0.00012546,2]
[339998708,1728305432946,-150.0,0.00012554,2]
[339998709,1728305432956,-150.0,0.00012554,2]
[339998710,1728305432965,-150.0,0.00012555,2]
[339998711,1728305432974,-150.0,0.00012562,2]
[339998712,1728305432983,-150.0,0.00012565,2]
[339998713,1728305432993,-1500.0,0.00012565,2]
[339998714,1728305433002,-150.0,0.00012567,2]
[339998715,1728305433012,-150.0,0.00012572,2]
[339998716,1728305433022,-150.0,0.00012575,2]
[339998717,1728305433032,-150.0,0.00012575,2]
[339998718,1728305433041,-162.4233,0.00012575,2]
[339998719,1728305433051,-193.01587068,0.00012576,2]
[339998720,1728305433061,-150.0,0.00012578,2]
[339998721,1728305433072,-150.0,0.0001258,2]
[339998722,1728305433081,-150.0,0.00012581,2]
[339998723,1728305433091,-150.0,0.00012581,2]
[339998724,1728305433100,-150.0,0.00012585,2]
[339998725,1728305433109,-150.0,0.00012585,2]
[339998726,1728305433119,-150.0,0.00012585,2]
[339998727,1728305433128,-150.0,0.00012586,2]
[339998728,1728305433137,-150.0,0.00012588,2]
[339998729,1728305433146,-150.0,0.00012589,2]
[339998730,1728305433156,-150.0,0.00012594,2]
[339998731,1728305433165,-150.0,0.00012594,2]
[339998732,1728305433175,-150.0,0.00012597,2]
[339998733,1728305433185,-1500.0,0.00012601,2]
[339998734,1728305433195,-1500.0,0.00012602,2]
[339998735,1728305433205,-172.23,0.00012605,2]
[339998736,1728305433214,-150.0,0.00012607,2]
[339998737,1728305433223,-150.0,0.00012612,2]
[339998738,1728305433232,-1500.0,0.00012613,2]
[339998739,1728305433242,-150.0,0.00012614,2]
[339998740,1728305433251,-1500.0,0.00012616,2]
[339998741,1728305433261,-150.0,0.00012622,2]
[339998742,1728305433270,-150.0,0.00012622,2]
[339998743,1728305433280,-150.0,0.00012625,2]
[339998744,1728305433289,-150.0,0.00012626,2]
[339998745,1728305433300,-150.0,0.00012633,2]
[339998746,1728305433309,-150.0,0.00012633,2]
[339998747,1728305433319,-150.0,0.00012634,2]
[339998748,1728305433331,-150.0,0.00012635,2]
[339998749,1728305433340,-150.0,0.00012637,2]
[339998750,1728305433350,-150.0,0.00012637,2]
[339998751,1728305433360,-150.0,0.00012637,2]
[339998752,1728305433370,-1500.0,0.00012639,2]
[339998753,1728305433380,-1500.0,0.00012642,2]
[339998754,1728305433390,-150.0,0.00012642,2]
[339998755,1728305433401,-150.0,0.00012642,2]
[339998756,1728305433411,-7666.96259593,0.00012644,2]
[339998757,1728305433421,-150.0,0.00012644,2]
[339998758,1728305433430,-319.38637932,0.00012647,2]
[339998759,1728305433439,-150.0,0.0001265,2]
[339998760,1728305433449,-150.0,0.00012651,2]
[339998761,1728305433458,-150.0,0.00012652,2]
[339998762,1728305433468,-150.0,0.00012653,2]
[339998763,1728305433477,-150.0,0.00012656,2]
[339998764,1728305433486,-150.0,0.00012663,2]
[339998765,1728305433496,-1500.0,0.00012664,2]
[339998766,1728305433506,-1500.0,0.00012667,2]
[339998767,1728305433517,-150.0,0.00012669,2]
[339998768,1728305433526,-150.0,0.00012669,2]
[339998769,1728305433536,-150.0,0.00012671,2]
[339998770,1728305433545,-300.0,0.00012672,2]
[339998771,1728305433556,-150.0,0.00012675,2]
[339998772,1728305433566,-1500.0,0.00012675,2]
[339998773,1728305433577,-150.0,0.00012679,2]
[339998774,1728305433586,-150.0,0.0001268,2]
[339998775,1728305433597,-150.0,0.00012688,2]
[339998776,1728305433607,-150.0,0.00012692,2]
[339998777,1728305433620,-150.0,0.00012695,2]
[339998778,1728305433630,-150.0,0.00012703,2]
[339998779,1728305433640,-229.04638306,0.00012704,2]
[339998780,1728305433650,-150.0,0.00012708,2]
[339998781,1728305433660,-150.0,0.00012709,2]
[339998782,1728305433670,-151.19570985,0.0001271,2]
[339998783,1728305433680,-150.0,0.00012713,2]
[339998784,1728305433690,-383.95,0.00012713,2]
[339998785,1728305433700,-150.0,0.00012718,2]
[339998786,1728305433709,-150.0,0.00012718,2]
[339998787,1728305433719,-150.0,0.0001272,2]
[339998788,1728305433728,-150.0,0.0001272,2]
[339998789,1728305433738,-150.0,0.00012722,2]
[339998790,1728305433747,-258.75021461,0.00012727,2]
[339998791,1728305433756,-1500.0,0.00012727,2]
[339998792,1728305433766,-150.0,0.00012728,2]
[339998793,1728305433776,-150.0,0.00012731,2]
[339998794,1728305433786,-150.0,0.00012732,2]
[339998795,1728305433795,-150.0,0.00012732,2]
[339998796,1728305433805,-150.0,0.00012734,2]
[339998797,1728305433814,-150.0,0.00012734,2]
[339998798,1728305433824,-200.0,0.00012735,2]
[339998799,1728305433833,-150.0,0.00012735,2]
[339998800,1728305433843,-150.0,0.00012735,2]
[339998801,1728305433852,-150.0,0.00012736,2]
[339998802,1728305433862,-150.0,0.00012739,2]
[339998803,1728305433871,-150.0,0.00012744,2]
[339998804,1728305433881,-150.0,0.00012747,2]
[339998805,1728305433891,-150.0,0.00012751,2]
[339998806,1728305433900,-150.0,0.00012759,2]
[339998807,1728305433909,-150.0,0.0001276,2]
[339998808,1728305433919,-150.0,0.00012763,2]
[339998809,1728305433929,-150.0,0.00012764,2]
[339998810,1728305433939,-150.0,0.00012765,2]
[339998811,1728305433949,-150.0,0.00012765,2]
[339998812,1728305433959,-150.0,0.00012767,2]
[339998813,1728305433968,-150.0,0.0001277,2]
[339998814,1728305433978,-150.0,0.00012771,2]
[339998815,1728305433988,-150.0,0.00012772,2]
[339998816,1728305433998,-150.0,0.00012772,2]
[339998817,1728305434009,-150.0,0.00012775,2]
[339998818,1728305434019,-150.0,0.00012775,2]
[339998819,1728305434028,-150.0,0.00012777,2]
[339998820,1728305434038,-1000.0,0.00012778,2]
[339998821,1728305434048,-150.0,0.00012778,2]
[339998822,1728305434057,-1500.0,0.00012778,2]
[339998823,1728305434069,-150.0,0.00012779,2]
[339998824,1728305434078,-150.0,0.00012782,2]
[339998825,1728305434088,-150.0,0.00012783,2]
[339998826,1728305434097,-150.0,0.00012787,2]
[339998827,1728305434107,-150.0,0.0001279,2]
[339998828,1728305434117,-150.0,0.00012796,2]
[339998829,1728305434126,-639.29,0.00012799,2]
[339998830,1728305434137,-1500.0,0.00012802,2]
[339998831,1728305434147,-150.0,0.00012803,2]
[339998832,1728305434158,-1500.0,0.00012817,2]
[339998833,1728305434168,-155.321,0.00012839,2]
[339998834,1728305434178,-2000.0,0.000129,2]
[339998835,1728305434187,-200.0,0.000129,2]
[339998836,1728305434197,-500.0,0.00012977,2]
[339998837,1728305434207,-300.0,0.00013,2]
[339998838,1728305434217,-481.26,0.00013053,2]
[339998839,1728305434226,-279.41,0.0001345,2]
[339998840,1728305434235,-481.26,0.00013621,2]
[339998841,1728305434245,-2500.0,0.000138,2]
[339998842,1728305434255,-94040.9808268,0.00014,4]
[339998843,1728305434264,-1000.0,0.00014055,2]
[339998844,1728305434273,-1761.47,0.00014071,2]
[339998845,1728305434283,-383.95,0.00014126,2]
[339998846,1728305434292,-200.0,0.0001415,2]
[339998847,1728305434302,-171.68,0.00014329,2]
[339998848,1728305434312,-535.34917244,0.00014347,2]
[339998849,1728305434322,-165.95,0.00014586,2]
[339998850,1728305434335,-279.41,0.00014795,2]
[339998851,1728305434345,-350.0,0.00015,2]
[339998852,1728305434354,-172.23,0.00015126,2]
[339998853,1728305434364,-199.74,0.00015162,2]
[339998854,1728305434375,-1000.0,0.00015333,2]
[339998855,1728305434385,-383.95,0.00015539,2]
[339998856,1728305434396,-200.0,0.00015565,2]
[339998857,1728305434406,-171.68,0.0001612,2]
[339998858,1728305434417,-279.41,0.0001614,2]
[339998859,1728305434427,-7666.96259587,0.00016215,2]
[339998860,1728305434440,-159.97,0.00016438,2]
[339998861,1728305434450,-383.95,0.00016951,2]
[339998862,1728305434461,-200.0,0.0001698,2]
[339998863,1728305434471,-400.0,0.00017,2]
[339998864,1728305434481,-10000.0,0.00018,2]
[339998865,1728305434491,-372.0,0.000183,2]
[339998866,1728305434500,-1260.0,0.000186,2]
[339998867,1728305434510,-450.0,0.00019,2]
[339998868,1728305434521,-153.21512405,0.00019446,2]
[339998869,1728305434530,-7666.96259587,0.00019785,2]
[339998870,1728305434539,-397.32436053,0.0002,2]
[339998871,1728305434549,-238.39461632,0.0002,2]
[339998872,1728305434558,-577.38,0.0002,2]
[339998873,1728305434568,-500.0,0.0002,2]
[339998874,1728305434578,-500.0,0.0002,2]
[339998875,1728305434587,-500.0,0.0002,2]
[339998876,1728305434596,-500.0,0.0002,2]
[339998877,1728305434605,-4606.30897999,0.00021,7]
[339998878,1728305434615,-500.0,0.00021,2]
[339998879,1728305434624,-150.15,0.00021461,2]
[339998880,1728305434633,-309.82497792,0.000219,2]
[339998881,1728305434642,-150.9156658,0.00021973,2]
[339998882,1728305434651,-2728.6925592,0.00021985,2]
[339998883,1728305434660,-1536.5825313,0.00021985,2]
[339998884,1728305434669,-360.39,0.00021999,2]
[339998885,1728305434678,-360.39,0.00021999,2]
[339998886,1728305434688,-360.39,0.00021999,2]
[339998887,1728305434696,-360.39,0.00021999,2]
[339998888,1728305434705,-360.39,0.00021999,2]
[339998889,1728305434714,-360.39,0.00021999,2]
[339998890,1728305434724,-158.25232667,0.00021999,2]
[339998891,1728305434733,-102601.83127475,0.00022,2]
[339998892,1728305438258,-320.51923467,0.00022,2]
[339998893,1728305440271,-1470.0,0.00022,2]
[339998894,1728305442075,-927.67041564,0.00022,2]
[339998895,1728305442090,-3363.46504001,0.00022,2]
[339998896,1728305442103,-1557.9091999,0.00022,2]
[339998897,1728305442116,-11849.0047696,0.00022,2]
[339998898,1728305442126,-83112.28804052,0.00022,2]
[339998900,1728305443109,-40909.22753173,0.00022,2]
[339998901,1728305443165,-8253.67338048,0.00022,2]
[339998902,1728305443178,-5750.5391324,0.00022,2]
[339998903,1728305443191,-5588.48944427,0.00022,2]
[339998904,1728305443204,-2865.81931308,0.00022,2]
[339998905,1728305443379,-6057.37127244,0.00022,2]
[339998906,1728305446139,-283.6307125,0.00022,2]
[339998907,1728305446195,-40472.25173017,0.00022,2]
[339998908,1728305446208,-1296.284,0.00022,2]
[339998909,1728305446526,-82063.06046608,0.00022,2]
[339998910,1728305446545,-2832.0099074,0.00022,2]
[339998911,1728305447522,-323.14358873,0.00022,2]
[339998912,1728305468335,152.99,0.00010959,2]
[339998913,1728305723689,250.0,0.00011,2]
[339999161,1728306632403,-300.0,0.00013,2]
[339999162,1728306632414,-350.0,0.00015,2]
[339999163,1728306632424,-9797.0,0.000153,5]
[339999164,1728306632433,-400.0,0.00017,2]
[339999165,1728306632443,-450.0,0.00019,2]
[339999166,1728306632452,-359.95,0.00019452,2]
[339999167,1728306632461,-559.97,0.00020007,2]
[339999168,1728306632471,-499.99,0.00020653,2]
[339999169,1728306632480,-152.99,0.00020653,2]
[339999170,1728306632489,-500.0,0.00021,2]
[339999171,1728306632498,-500.0,0.00021824,2]
[339999172,1728306632508,-200.0,0.00021824,2]
[339999173,1728306632518,-504.488,0.000219,2]
[339999174,1728306632527,-167.86,0.000219,2]
[339999175,1728306632538,-8971.21822428,0.0002199,2]
[339999176,1728306632547,-250.0,0.00021999,2]
[339999177,1728306632557,-73841.76416769,0.00022,2]
[339999178,1728306632566,-1003.1385899,0.00022,2]
[339999179,1728306632575,-250.0,0.00022005,2]
[339999180,1728306632585,-3949.888287,0.00022009,2]
[339999181,1728306632594,-1024.819289,0.00022024,2]
[339999182,1728306632603,-250.0,0.00022039,2]
[339999183,1728306632613,-1819.893635,0.00022047,2]
[339999184,1728306632622,-150.0,0.00022069,2]
[339999185,1728306632631,-215.05,0.00022194,30]
[339999187,1728306632640,-559.97,0.00022271,2]
[339999188,1728306632650,-23900.0,0.00022324,2]
[339999189,1728306632659,-1000.0,0.00022326,2]
[339999190,1728306632668,-198.68,0.00022569,2]
[339999192,1728306632677,-187.54,0.00022611,2]
[339999194,1728306632686,-781.65,0.00022655,2]
[339999195,1728306632695,-163.69,0.00023025,2]
[339999197,1728306632704,-163.69,0.0002304,2]
[339999199,1728306632713,-163.69,0.00023054,2]
[339999201,1728306632722,-163.69,0.00023069,2]
[339999203,1728306632732,-163.69,0.00023083,2]
[339999205,1728306632741,-163.69,0.00023097,2]
[339999207,1728306632751,-163.69,0.00023112,2]
[339999208,1728306632760,-163.69,0.00023126,2]
[339999210,1728306632769,-163.69,0.0002314,2]
[339999212,1728306632779,-4329.84238809,0.00023637,2]
[339999214,1728306632789,-559.97,0.00024535,2]
[339999216,1728306632799,-215.05,0.00024778,30]
[339999217,1728306632808,-262.1187,0.000249,2]
[339999218,1728306632817,-940.6836,0.000249,2]
[339999219,1728306632827,-7579.0412,0.000249,2]
[339999220,1728306632836,-8475.71,0.000249,2]
[339999221,1728306632845,-27384.85987631,0.00025,7]
[339999222,1728306632854,-205.94,0.00025016,2]
[339999223,1728306632863,-205.94,0.00025016,2]
[339999224,1728306632872,-205.94,0.00025016,2]
[339999225,1728306632882,-100000.0,0.00025017,2]
[339999226,1728306632891,-5000.0,0.000251,10]
[339999227,1728306632901,-280.916,0.00025115,2]
[339999228,1728306632910,-1807.738,0.00025115,2]
[339999230,1728306632919,-434.971,0.00025115,2]
[339999232,1728306632928,-945.0,0.00025115,2]
[339999234,1728306632937,-1000.0,0.00025117,2]
[339999236,1728306632947,-559.97,0.00026799,2]
[339999238,1728306632955,-191.8485,0.000268,2]
[339999240,1728306632965,-153.21512405,0.00026899,2]
[339999241,1728306632974,-500.0,0.000269,2]
[339999243,1728306632983,-767.3606,0.000269,2]
[339999245,1728306632993,-38695.19158386,0.000269,2]
[339999272,1728306638350,-793.48923202,0.000269,2]
[339999273,1728306638362,-18184.72573084,0.000269,2]
[339999274,1728306638377,-4036.68375328,0.000269,2]
[339999275,1728306638388,-557.21846621,0.000269,2]
[339999276,1728306638435,-14461.16019484,0.000269,2]
[339999277,1728306638546,-168271.53103895,0.000269,2]
[339999278,1728306638556,-205.96,0.00026999,2]
[339999279,1728306638565,-131515.20948914,0.00027,7]
[339999280,1728306638575,-2715.10885431,0.00027,7]
[339999281,1728306638584,-215.05,0.00027362,30]
[339999282,1728306638593,-1000.0,0.00027908,2]
[339999283,1728306638602,-651.78307707,0.00028889,5]
[339999284,1728306638612,-651.78307708,0.00028889,5]
[339999285,1728306638621,-559.97,0.00029063,2]
[339999286,1728306638631,-11862.52702313,0.000299,2]
[339999287,1728306638640,-215.05,0.00029946,30]
[339999288,1728306638649,-5891.34583248,0.0003,7]
[339999289,1728306638659,-156.0,0.0003,2]
[339999290,1728306638669,-152.99,0.00030348,2]
[339999291,1728306638678,-429.07,0.00030559,2]
[339999292,1728306638687,-161.88,0.00030559,2]
[339999293,1728306638697,-1000.0,0.00030699,2]
[339999294,1728306638707,-6325.61448737,0.00031,30]
[339999295,1728306638716,-153.21512405,0.00031149,2]
[339999296,1728306638727,-887.30588338,0.00031261,3]
[339999297,1728306638847,-559.97,0.00031326,2]
[339999298,1728306638857,-212.743984,0.00031602,2]
[339999299,1728306638866,-7500.0,0.00032161,2]
[339999300,1728306638876,-5077.38697364,0.00032299,5]
[339999301,1728306638885,-7558.12747141,0.00032299,5]
[339999302,1728306638895,-205.95,0.00032309,2]
[339999303,1728306638904,-205.95,0.00032309,2]
[339999304,1728306638914,-205.95,0.00032309,2]
[339999305,1728306638924,-7703.66928301,0.0003231,7]
[339999306,1728306638933,-95516.69195094,0.0003231,10]
[339999307,1728306638942,-33598.07316987,0.0003231,8]
[339999308,1728306638951,-31222.21298411,0.0003231,7]
[339999309,1728306638960,-4349.23396979,0.0003231,7]
[339999310,1728306638970,-4710.77533507,0.0003231,10]
[339999311,1728306638979,-10012.93605689,0.0003231,7]
[339999312,1728306638988,-6573.0,0.0003231,30]
[339999313,1728306638998,-1000.0,0.0003231,120]
[339999314,1728306639007,-150.70770887,0.0003231,2]
[339999315,1728306639016,-1302.9412465,0.0003231,120]
[339999316,1728306639026,-150.0,0.000324,2]
[339999317,1728306639036,-215.05,0.0003253,120]
[339999318,1728306639050,-500.0,0.00032609,2]
[339999319,1728306639059,-534.3,0.00032984,2]
[339999320,1728306639068,-534.3,0.00032984,2]
[339999321,1728306639077,-534.3,0.00032984,2]
[339999322,1728306639087,-251.99,0.00032984,2]
[339999323,1728306639097,-509.76986952,0.00033157,2]
[339999324,1728306639106,-500.0,0.0003331,120]
[339999325,1728306639117,-5077.38697364,0.0003348,5]
[339999326,1728306639126,-1000.0,0.0003349,2]
[339999327,1728306639135,-559.97,0.0003359,2]
[339999328,1728306639145,-7558.12747141,0.00033725,5]
[339999329,1728306639154,-5077.38697364,0.00033734,5]
[339999330,1728306639164,-156.89495249,0.00033744,5]
[339999331,1728306639173,-7558.12747141,0.00033823,5]
[339999332,1728306639183,-15232.1609209,0.00033834,5]
[339999333,1728306639192,-15116.2549428,0.00033834,5]
[339999334,1728306639201,-3497.65,0.00033844,2]
[339999335,1728306639211,-26031.64,0.00033844,2]
[339999336,1728306639220,-15116.2549428,0.00033851,5]
[339999337,1728306639229,-198.68,0.00033853,120]
[339999338,1728306639238,-25386.9348682,0.0003386,5]
[339999339,1728306639248,-7558.12747141,0.0003386,5]
[339999340,1728306639257,-20309.5478946,0.0003387,5]
[339999341,1728306639266,-7558.12747141,0.00033951,5]
[339999342,1728306639275,-20309.5478946,0.0003396,5]
[339999343,1728306639284,-15116.2549428,0.0003396,5]
[339999344,1728306639295,-25386.9348682,0.0003397,5]
[339999345,1728306639304,-15116.2549428,0.0003397,5]
[339999346,1728306639314,-500.0,0.00033973,5]
[339999347,1728306639323,-150.87360803,0.00033973,5]
[339999348,1728306639333,-30464.3218418,0.0003398,5]
[339999349,1728306639342,-15116.2549428,0.0003398,5]
[339999350,1728306639352,-25386.9348682,0.0003399,5]
[339999351,1728306639361,-22674.3824142,0.0003399,5]
[339999352,1728306639371,-56064.46,0.00034,30]
[339999353,1728306639380,-277.02,0.00034,7]
[339999354,1728306639390,-246.89,0.00034,2]
[339999355,1728306639400,-246.89,0.00034,2]
[339999356,1728306639410,-246.89,0.00034,2]
[339999357,1728306639419,-246.89,0.00034,2]
[339999358,1728306639428,-246.89,0.00034,2]
[339999359,1728306639438,-246.89,0.00034,2]
[339999360,1728306639447,-246.89,0.00034,2]
[339999361,1728306639456,-246.89,0.00034,2]
[339999362,1728306639466,-246.89,0.00034,2]
[339999363,1728306639475,-246.89,0.00034,2]
[339999364,1728306639484,-246.89,0.00034,2]
[339999365,1728306639494,-246.89,0.00034,2]
[339999366,1728306639503,-246.89,0.00034,2]
[339999367,1728306639512,-246.89,0.00034,2]
[339999368,1728306639521,-213.782818,0.00034324,2]
[339999369,1728306639531,-185.274974,0.00034324,2]
[339999370,1728306639541,-150.0,0.00034548,10]
[339999371,1728306639551,-7558.12747141,0.000346,5]
[339999372,1728306639560,-10154.7739473,0.00034609,5]
[339999373,1728306639569,-7558.12747141,0.00034609,5]
[339999374,1728306639579,-20309.5478946,0.0003462,5]
[339999375,1728306639588,-547.0,0.00034649,5]
[339999376,1728306639598,-213.782818,0.00034753,2]
[339999377,1728306639607,-246.89,0.00034855,2]
[339999378,1728306639616,-15116.2549428,0.00034865,5]
[339999379,1728306639626,-15116.2549428,0.0003487,5]
[339999380,1728306639635,-246.89,0.0003487,2]
[339999381,1728306639644,-27399.58469661,0.00034875,3]
[339999382,1728306639654,-28532.55468564,0.0003488,2]
[339999383,1728306639663,-7558.12747141,0.0003489,5]
[339999384,1728306639672,-9851.9791509,0.000349,2]
[339999385,1728306639681,-1823.69318379,0.00035,120]
[339999386,1728306639690,-1013.0,0.00035,4]
[339999387,1728306639699,-813.0,0.00035,25]
[339999388,1728306639709,-500.0,0.00035,7]
[339999389,1728306639718,-500.0,0.00035,4]
[339999390,1728306639727,-215.05,0.00035114,120]
[339999391,1728306639736,-213.782818,0.00035182,2]
[339999392,1728306639745,-153.21512405,0.000354,2]
[339999393,1728306639754,-150.0,0.000354,120]
[339999394,1728306639764,-7558.12747141,0.00035582,6]
[339999395,1728306639773,-246.89,0.00035582,2]
[339999396,1728306639782,-1958.9650685,0.00035592,2]
[339999397,1728306639792,-1103.1332546,0.00035592,2]
[339999398,1728306639801,-4251.7282495,0.00035592,2]
[339999399,1728306639810,-250.0,0.00035605,2]
[339999400,1728306639819,-37790.637357,0.00035606,6]
[339999401,1728306639828,-246.89,0.00035606,2]
[339999402,1728306639838,-246.89,0.00035606,2]
[339999403,1728306639847,-246.89,0.00035606,2]
[339999404,1728306639856,-213.782818,0.00035611,2]
[339999405,1728306639866,-500.0,0.00035616,2]
[339999406,1728306639875,-500.0,0.00035616,2]
[339999407,1728306639884,-500.0,0.00035616,2]
[339999408,1728306639894,-500.0,0.00035616,2]
[339999409,1728306639903,-500.0,0.00035616,2]
[339999410,1728306639912,-555.09622669,0.00035616,2]
[339999411,1728306639921,-500.0,0.00035616,2]
[339999412,1728306639931,-500.0,0.00035616,2]
[339999413,1728306639940,-217.46118736,0.00035616,2]
[339999414,1728306639949,-500.0,0.00035616,2]
[339999415,1728306639959,-500.0,0.00035616,2]
[339999416,1728306639968,-500.0,0.00035616,2]
[339999417,1728306639977,-500.0,0.00035616,2]
[339999418,1728306639986,-500.0,0.00035616,2]
[339999419,1728306639995,-500.0,0.00035616,2]
[339999420,1728306640004,-500.0,0.00035616,2]
[339999421,1728306640013,-500.0,0.00035616,2]
[339999422,1728306640023,-456.65582364,0.00035616,2]
[339999423,1728306640032,-500.0,0.00035616,2]
[339999424,1728306640045,-500.0,0.00035616,2]
[339999425,1728306640055,-500.0,0.00035616,2]
[339999426,1728306640064,-195.04080272,0.00035616,2]
[339999427,1728306640073,-500.0,0.00035616,2]
[339999428,1728306640082,-500.0,0.00035616,2]
[339999429,1728306640091,-500.0,0.00035616,2]
[339999430,1728306640101,-500.0,0.00035616,2]
[339999431,1728306640110,-259.00743368,0.00035616,2]
[339999433,1728306640119,-500.0,0.00035616,2]
[339999434,1728306640129,-500.0,0.00035616,2]
[339999435,1728306640138,-500.0,0.00035616,2]
[339999436,1728306640148,-1037.49,0.00035616,2]
[339999437,1728306640157,-500.0,0.00035616,2]
[339999438,1728306640166,-502.69807287,0.00035616,2]
[339999439,1728306640176,-500.0,0.00035616,2]
[339999440,1728306640185,-602.73036756,0.00035616,2]
[339999441,1728306640195,-389.14067993,0.00035616,2]
[339999442,1728306640205,-500.0,0.00035616,2]
[339999443,1728306640214,-500.0,0.00035616,2]
[339999444,1728306640223,-150.0,0.00035616,2]
[339999445,1728306640233,-500.0,0.00035616,2]
[339999446,1728306640243,-500.0,0.00035616,2]
[339999447,1728306640252,-523.10065819,0.00035616,2]
[339999448,1728306640261,-500.0,0.00035616,2]
[339999449,1728306640271,-500.0,0.00035616,2]
[339999450,1728306640281,-500.0,0.00035616,2]
[339999451,1728306640292,-500.0,0.00035616,2]
[339999452,1728306640301,-500.0,0.00035616,2]
[339999453,1728306640311,-500.0,0.00035616,2]
[339999454,1728306640320,-500.0,0.00035616,2]
[339999455,1728306640330,-317.50102909,0.00035616,2]
[339999456,1728306640340,-500.0,0.00035616,2]
[339999457,1728306640350,-502.8208723,0.00035616,2]